lending/lending_fUSD_20250130
["ID","MTS","AMOUNT","RATE_DAILY","PERIOD"]
[350945179,1738225840579,-92.88669373,0.000207,30]
[350945180,1738225840591,-455.78372172,0.000207,30]
[350945181,1738225840602,-315.6626567,0.000207,30]
[350945182,1738225840622,-1987.94076112,0.000207,30]
[350945196,1738225845791,-220.83330427,0.00020642,2]
[350945197,1738225845810,-176.40097506,0.00020642,2]
[350945198,1738225845825,-1584.56572067,0.000207,30]
[350945199,1738225845895,-35387.76165418,0.000207,30]
[350945200,1738225845950,-9355.14100426,0.000207,30]
[350945201,1738225845965,-379.24902169,0.000207,30]
[350945202,1738225845980,-21004.0,0.000207,30]
[350945205,1738226079582,150.0,0.0001112,5]
[350945213,1738227031869,-201.18,0.00010137,2]
[350945214,1738227031892,-180.83,0.00010137,2]
[350945215,1738227031903,-150.0,0.00011151,2]
[350945216,1738227031916,-150.0,0.00011151,2]
[350945217,1738227031926,-150.0,0.00011151,2]
[350945218,1738227031936,-490.21029579,0.00013,2]
[350945219,1738227031948,-59.78970421,0.00013,2]
[350945220,1738227031957,-21213.1618756,0.00014781,7]
[350945221,1738227032055,-1000.0,0.00014781,7]
[350945222,1738227032137,-1070.7,0.00014781,7]
[350945223,1738227032244,-27.0278265,0.00014781,7]
[350945224,1738227032257,-600.0,0.00015,2]
[350945225,1738227032268,-150.0,0.00016795,2]
[350945226,1738227032278,-201.18,0.00016813,2]
[350945227,1738227032287,-650.0,0.00017,2]
[350945228,1738227032299,-922.45,0.0001716,2]
[350945229,1738227032309,-360.27026072,0.00017178,2]
[350945230,1738227032322,-181.72973928,0.00017178,2]
[350945231,1738227032333,-3876.0,0.000176,2]
[350945232,1738227032343,-150.0,0.00017655,2]
[350945233,1738227032353,-1561.845,0.0001776,2]
[350945234,1738227032363,-1315.5,0.00018533,2]
[350945235,1738227032373,-9508.3751485,0.00018533,2]
[350945236,1738227032386,-491.6148515,0.00018533,2]
[350945237,1738227032396,-299.99,0.00018533,4]
[350945238,1738227032413,-150.99,0.00018533,2]
[350945239,1738227032424,-999.99,0.00018533,2]
[350945240,1738227032433,-1077.70864451,0.00018533,2]
[350945241,1738227032445,-289.1972723,0.00018533,2]
[350945255,1738227037789,-1142.11724043,0.00018533,2]
[350945256,1738227037887,-7490.96684276,0.00018533,2]
[350945257,1738227037897,-1369.61,0.00018533,2]
[350945258,1738227037909,-150.99,0.00018533,2]
[350945259,1738227037919,-209.27,0.0001881,2]
[350945260,1738227037929,-417.28130018,0.000189,2]
[350945261,1738227037939,-1000.0,0.00018904,9]
[350945262,1738227037949,-1000.0,0.00018984,2]
[350945263,1738227037960,-700.0,0.00019,2]
[350945264,1738227037970,-461.01590394,0.00019,2]
[350945265,1738227037979,-417.2813001,0.00019003,2]
[350945266,1738227037990,-417.2813001,0.00019107,2]
[350945267,1738227038000,-500.0,0.00019164,2]
[350945268,1738227038010,-1000.0,0.00019178,9]
[350945269,1738227038019,-417.2813001,0.0001921,2]
[350945270,1738227038029,-150.19,0.00019248,2]
[350945271,1738227038040,-417.2813001,0.00019314,2]
[350945272,1738227038050,-2000.0,0.00019345,2]
[350945273,1738227038060,-161.11,0.00019345,2]
[350945274,1738227038069,-417.2813001,0.00019417,2]
[350945275,1738227038079,-922.45,0.00019424,2]
[350945276,1738227038089,-1000.0,0.00019452,9]
[350945277,1738227038100,-417.2813001,0.00019521,2]
[350945278,1738227038110,-417.2813001,0.00019624,2]
[350945279,1738227038120,-200.0,0.00019693,2]
[350945280,1738227038130,-326.25,0.0001971,2]
[350945281,1738227038140,-1000.0,0.00019726,9]
[350945283,1738227038151,-417.2813001,0.00019728,2]
[350945284,1738227038164,-326.25,0.00019743,2]
[350945286,1738227038174,-326.25,0.00019749,2]
[350945288,1738227038184,-326.25,0.00019765,2]
[350945290,1738227038193,-200.0,0.00019784,2]
[350945291,1738227038204,-11901.99,0.00019809,2]
[350945292,1738227038214,-4000.0,0.00019809,2]
[350945294,1738227038224,-304.26,0.00019809,2]
[350945296,1738227038234,-150.19,0.00019823,2]
[350945298,1738227038244,-417.2813001,0.00019831,2]
[350945300,1738227038258,-250.0,0.00019844,2]
[350945301,1738227038268,-417.2813001,0.00019934,2]
[350945302,1738227038278,-406.14,0.00019984,2]
[350945303,1738227038288,-8500.0,0.00019999,2]
[350945305,1738227038299,-1000.0,0.0002,20]
[350945306,1738227038309,-5800.0,0.0002,2]
[350945307,1738227038318,-1000.0,0.0002,9]
[350945308,1738227038328,-417.2813001,0.00020038,2]
[350945309,1738227038339,-150.0,0.00020055,2]
[350945310,1738227038348,-2000.0,0.00020061,2]
[350945311,1738227038358,-417.2813001,0.00020141,2]
[350945312,1738227038372,-417.2813001,0.00020245,2]
[350945313,1738227038382,-552.23,0.00020269,7]
[350945314,1738227038391,-552.23,0.00020269,7]
[350945315,1738227038406,-552.23,0.00020269,7]
[350945316,1738227038419,-552.23,0.00020269,7]
[350945317,1738227038430,-1000.0,0.00020273,9]
[350945318,1738227038440,-417.2813001,0.00020348,2]
[350945319,1738227038450,-150.19,0.00020398,2]
[350945320,1738227038461,-417.2813001,0.00020452,2]
[350945321,1738227038471,-3000.0,0.000205,2]
[350945322,1738227038481,-164.59430139,0.000205,2]
[350945323,1738227038491,-318.35774728,0.000205,2]
[350945324,1738227038505,-186.4197348,0.000205,2]
[350945325,1738227038515,-202.08013269,0.000205,2]
[350945326,1738227038525,-3422.5042751,0.000205,2]
[350945327,1738227038535,-998.4994,0.000205,2]
[350945328,1738227038544,-3422.50427503,0.00020511,2]
[350945329,1738227038554,-202.08013267,0.00020511,2]
[350945330,1738227038563,-202.08013267,0.00020522,2]
[350945331,1738227038572,-3422.50427503,0.00020522,2]
[350945332,1738227038582,-164.59430137,0.00020533,2]
[350945333,1738227038592,-202.08013267,0.00020533,2]
[350945334,1738227038602,-3422.50427503,0.00020533,2]
[350945335,1738227038611,-552.23,0.00020543,7]
[350945336,1738227038622,-552.23,0.00020543,7]
[350945337,1738227038633,-3422.50427503,0.00020544,2]
[350945338,1738227038643,-202.08013267,0.00020544,2]
[350945339,1738227038652,-1000.0,0.00020547,9]
[350945340,1738227038665,-417.2813001,0.00020555,2]
[350945341,1738227038675,-202.08013267,0.00020556,2]
[350945342,1738227038684,-3422.50427503,0.00020556,2]
[350945343,1738227038694,-164.59430137,0.00020567,2]
[350945344,1738227038703,-3422.50427503,0.00020567,2]
[350945345,1738227038713,-202.08013267,0.00020567,2]
[350945346,1738227038723,-3422.50427503,0.00020578,2]
[350945347,1738227038732,-202.08013267,0.00020578,2]
[350945348,1738227038743,-327.4,0.00020578,2]
[350945349,1738227038752,-3422.50427503,0.00020589,2]
[350945350,1738227038762,-202.08013267,0.00020589,2]
[350945351,1738227038772,-432.6641,0.000206,2]
[350945352,1738227038782,-500.0,0.000206,2]
[350945353,1738227038791,-5000.0,0.000206,2]
[350945354,1738227038801,-1000.0,0.000206,2]
[350945355,1738227038811,-9297.65992419,0.000206,2]
[350945356,1738227038824,-20658.33001596,0.000206,2]
[350945369,1738227042925,-9321.3893818,0.000206,2]
[350945373,1738227045848,-1392.0,0.000206,2]
[350945374,1738227046011,-31040.1279,0.000206,2]
[350945375,1738227046023,-9602.1832,0.000206,2]
[350945388,1738228232394,-214.06,0.00010137,2]
[350945389,1738228232404,-150.0,0.00011151,2]
[350945390,1738228232414,-150.0,0.00011151,2]
[350945391,1738228232423,-150.0,0.00011151,2]
[350945392,1738228232433,-550.0,0.00013,2]
[350945393,1738228232442,-3310.0,0.000145,5]
[350945394,1738228232452,-600.0,0.00015,2]
[350945395,1738228232461,-369.95,0.000165,2]
[350945396,1738228232471,-374.57,0.000165,2]
[350945397,1738228232481,-381.12,0.000165,2]
[350945398,1738228232495,-932.97,0.00016795,2]
[350945399,1738228232505,-214.06,0.00016813,2]
[350945400,1738228232515,-151.49,0.00017,2]
[350945401,1738228232524,-151.14,0.00017,2]
[350945402,1738228232533,-469.0,0.00017,2]
[350945403,1738228232544,-650.0,0.00017,2]
[350945404,1738228232554,-26695.2218,0.00017791,2]
[350945405,1738228232563,-469.0,0.00018,2]
[350945406,1738228232572,-499.99,0.00018533,2]
[350945407,1738228232582,-14326.82,0.00018533,2]
[350945408,1738228232591,-150.99,0.00018533,2]
[350945409,1738228232600,-930.84,0.00018533,2]
[350945410,1738228232609,-9999.99,0.00018533,2]
[350945411,1738228232618,-150.99,0.00018533,2]
[350945412,1738228232628,-4375.29,0.00018533,2]
[350945413,1738228232642,-999.99,0.00018533,2]
[350945414,1738228232652,-9999.99,0.00018533,2]
[350945415,1738228232661,-2127.03,0.00018533,2]
[350945416,1738228232670,-299.99,0.00018533,4]
[350945417,1738228232682,-9999.99,0.00018533,2]
[350945418,1738228232691,-1028.92227211,0.00018904,9]
[350945419,1738228232701,-250.0,0.0001892,2]
[350945420,1738228232710,-469.0,0.00019,2]
[350945421,1738228232719,-700.0,0.00019,2]
[350945422,1738228232731,-932.97,0.00019059,2]
[350945423,1738228232742,-500.0,0.00019164,2]
[350945424,1738228232752,-500.0,0.00019164,2]
[350945425,1738228232761,-150.0,0.00019178,2]
[350945426,1738228232771,-420.54,0.0001925,2]
[350945427,1738228232781,-500.0,0.00019342,2]
[350945428,1738228232792,-1000.0,0.00019419,2]
[350945429,1738228232803,-393.43,0.0001952,2]
[350945430,1738228232812,-2198.91621256,0.00019663,2]
[350945431,1738228232821,-3607.10813836,0.00019664,2]
[350945432,1738228232832,-326.25,0.00019666,2]
[350945433,1738228232842,-3607.10813836,0.00019667,2]
[350945434,1738228232853,-2198.91621256,0.0001967,2]
[350945435,1738228232864,-1440.75724239,0.00019674,2]
[350945436,1738228232874,-2198.91621256,0.0001968,2]
[350945437,1738228232885,-18603.02408042,0.0001968,2]
[350945438,1738228232895,-150.0,0.00019683,2]
[350945439,1738228232904,-3657.10813836,0.00019684,2]
[350945440,1738228232913,-18603.02408042,0.00019685,2]
[350945441,1738228232922,-326.25,0.00019685,2]
[350945442,1738228232932,-358.15144848,0.00019694,2]
[350945443,1738228232944,-18603.02408042,0.00019698,2]
[350945444,1738228232953,-200.0,0.00019698,2]
[350945445,1738228232962,-1440.75724239,0.00019702,2]
[350945446,1738228232972,-358.15144848,0.00019702,2]
[350945447,1738228232983,-3657.10813836,0.00019702,2]
[350945448,1738228232992,-3657.10813836,0.00019703,2]
[350945449,1738228233007,-3865.38167105,0.00019707,2]
[350945450,1738228233017,-21522.98801896,0.00019708,2]
[350945451,1738228233028,-3657.10813836,0.00019714,2]
[350945452,1738228233037,-2198.91621256,0.00019731,2]
[350945453,1738228233046,-358.15144848,0.00019737,2]
[350945454,1738228233055,-2198.91621256,0.00019739,2]
[350945455,1738228233065,-326.25,0.00019739,2]
[350945456,1738228233075,-326.25,0.00019741,2]
[350945457,1738228233084,-3607.10813836,0.00019744,2]
[350945458,1738228233094,-3865.38167105,0.00019753,2]
[350945459,1738228233104,-21522.98801896,0.00019756,2]
[350945460,1738228233114,-21522.98801896,0.00019762,2]
[350945461,1738228233124,-2198.91621256,0.00019764,2]
[350945462,1738228233135,-18603.02408042,0.00019771,2]
[350945463,1738228233145,-358.15144848,0.00019773,2]
[350945464,1738228233155,-3865.38167105,0.00019773,2]
[350945465,1738228233165,-1440.75724239,0.00019774,2]
[350945466,1738228233175,-2198.91621256,0.00019775,2]
[350945467,1738228233184,-1367.89771244,0.00019783,2]
[350945468,1738228233200,-72.85952995,0.00019783,2]
[350945469,1738228233209,-3607.10813836,0.00019787,2]
[350945470,1738228233219,-2198.91621256,0.00019796,2]
[350945471,1738228233230,-21522.98801896,0.00019798,2]
[350945472,1738228233240,-3865.38167105,0.00019799,2]
[350945473,1738228233250,-1615.58,0.00019809,2]
[350945474,1738228233259,-2881.57,0.00019809,2]
[350945475,1738228233269,-4381.26,0.00019809,2]
[350945476,1738228233279,-871.89,0.00019809,2]
[350945477,1738228233290,-1463.24058103,0.000199,2]
[350945478,1738228233300,-186.4197348,0.000199,2]
[350945479,1738228233309,-432.6641,0.000199,2]
[350945480,1738228233319,-4738.88984435,0.00019918,2]
[350945481,1738228233329,-465.24904644,0.00019945,2]
[350945482,1738228233339,-1463.24058098,0.00019978,2]
[350945483,1738228233350,-4738.88984426,0.00019994,2]
[350945484,1738228233360,-423.41948241,0.00019999,2]
[350945485,1738228233370,-469.0,0.0002,2]
[350945486,1738228233380,-422.0,0.0002,14]
[350945487,1738228233392,-4944.75,0.0002,2]
[350945488,1738228233402,-288269.57144245,0.0002,2]
[350945489,1738228237984,-33658.78372218,0.0002,2]
[350945490,1738228238037,-24014.88546094,0.0002,2]
[350945491,1738228238092,-1246486.27684042,0.0002,2]
[350945492,1738228238102,-738316.42855755,0.0002,2]
[350945493,1738228238113,-465.24904642,0.00020018,2]
[350945494,1738228238122,-1463.24058098,0.00020056,2]
[350945495,1738228238132,-4738.88984426,0.0002007,2]
[350945496,1738228238144,-465.24904642,0.00020091,2]
[350945497,1738228238154,-1463.24058098,0.00020133,2]
[350945498,1738228238163,-4738.88984426,0.00020145,2]
[350945499,1738228238172,-465.24904642,0.00020163,2]
[350945500,1738228238181,-150.0,0.00020187,2]
[350945501,1738228238191,-1463.24058098,0.00020211,2]
[350945502,1738228238200,-4738.88984426,0.00020221,2]
[350945503,1738228238210,-465.24904642,0.00020236,2]
[350945504,1738228238220,-500.0,0.0002026,2]
[350945505,1738228238229,-500.0,0.00020269,7]
[350945506,1738228238239,-500.0,0.00020269,7]
[350945507,1738228238248,-500.0,0.00020269,7]
[350945508,1738228238258,-152.0,0.00020281,3]
[350945509,1738228238267,-1463.24058098,0.00020289,2]
[350945510,1738228238277,-4738.88984426,0.00020297,2]
[350945511,1738228238286,-465.24904642,0.00020309,2]
[350945512,1738228238296,-1000.0,0.00020355,2]
[350945513,1738228238306,-1463.24058098,0.00020367,2]
[350945514,1738228238315,-4738.88984426,0.00020373,2]
[350945515,1738228238325,-465.24904642,0.00020382,2]
[350945516,1738228238334,-1463.24058098,0.00020444,2]
[350945517,1738228238344,-4738.88984426,0.00020448,2]
[350945518,1738228238354,-465.24904642,0.00020454,2]
[350945519,1738228238363,-1249.476,0.00020499,2]
[350945520,1738228238373,-5000.0,0.000205,2]
[350945521,1738228238382,-998.4994,0.000205,2]
[350945522,1738228238396,-500.0,0.000205,2]
[350945523,1738228238405,-3000.0,0.000205,2]
[350945524,1738228238415,-1000.0,0.000205,2]
[350945525,1738228238425,-588509.31017896,0.000205,2]
[350945526,1738228238435,-55555.0,0.000205,2]
[350945527,1738228238445,-833.12530093,0.000205,2]
[350945528,1738228238454,-176.40097505,0.000205,2]
[350945529,1738228238464,-4698.99184153,0.000205,2]
[350945530,1738228238474,-1463.24058098,0.00020522,2]
[350945531,1738228238484,-4738.88984426,0.00020524,2]
[350945532,1738228238493,-465.24904642,0.00020527,2]
[350945533,1738228238503,-1615.58,0.00020542,2]
[350945534,1738228238512,-500.0,0.00020543,7]
[350945535,1738228238522,-500.0,0.00020543,7]
[350945536,1738228238532,-500.0,0.00020573,2]
[350945537,1738228238542,-500.06119259,0.00020573,2]
[350945538,1738228238552,-500.0,0.00020573,2]
[350945539,1738228238563,-190.6049021,0.00020573,2]
[350945540,1738228238573,-1000.0,0.00020586,2]
[350945541,1738228238584,-666.0,0.00020599,2]
[350945542,1738228238593,-666.0,0.00020599,2]
[350945543,1738228238603,-1032.89835385,0.00020599,5]
[350945544,1738228238613,-1032.89835385,0.00020599,5]
[350945545,1738228238622,-1032.89835384,0.00020599,5]
[350945546,1738228238635,-1032.89835385,0.00020599,5]
[350945547,1738228238646,-500.0,0.00020599,2]
[350945548,1738228238656,-999.0,0.00020599,2]
[350945549,1738228238665,-1040206.2503434,0.000206,2]
[350945550,1738228239910,-1000.0,0.00019376,2]
[350945551,1738228239920,-398.0966,0.000199,2]
[350945552,1738228239930,-1580.9891134,0.000206,2]
[350945571,1738228242979,-2527.44279188,0.000206,2]
[350945572,1738228242991,-363.11229974,0.000206,2]
[350945573,1738228243084,-673.42889055,0.000206,2]
[350945574,1738228243189,-419.81652618,0.000206,2]
[350945595,1738228245963,-731.16872133,0.000206,2]
[350945596,1738228245975,-105136.5423652,0.000206,2]
[350945597,1738228325881,21011.66433631,9.9e-05,2]
[350945633,1738229438425,-181.06,0.00010137,2]
[350945634,1738229438436,-1032.89835385,0.00011999,3]
[350945635,1738229438448,-28318.15922615,0.00012,2]
[350945636,1738229438536,-31343.05003468,0.00012,2]
[350945637,1738229438591,-1182.99374421,0.00012,2]
[350945638,1738229438603,-26312.49999999,0.00012,2]
[350945651,1738229443298,-15788.988781,0.00012,2]
[350945900,1738229446103,-314.01000038,0.00012,2]
[350945923,1738229446320,-5768.6791955,0.00012,2]
[350945974,1738229689203,210.0,0.00011,2]
[350945978,1738229761087,-21833.334186,0.0001191,2]
[350945979,1738229761143,-150.0,0.0001197,2]
[350945980,1738229761187,-778.665814,0.00011999,3]
[350945981,1738229951152,453.3375432,0.00023,120]
[350945982,1738230292433,2692.40240996,0.00023,120]
[350945983,1738230379333,849.90689162,0.00021,120]
[350945990,1738230632372,-907.78758313,0.00011643,2]
[350945991,1738230632427,-2072.21241687,0.00011643,2]
[350945992,1738230632437,-200.0,0.000117,4]
[350945993,1738230632447,-166.926,0.0001176,2]
[350945994,1738230632457,-1744.37514273,0.0001176,2]
[350945995,1738230632485,-480.79085727,0.0001176,2]
[350945996,1738230632495,-500.0,0.000118,4]
[350945997,1738230632514,-9548.66441947,0.000118,2]
[350945998,1738230632526,-2797.73088,0.0001188,2]
[350945999,1738230632537,-1497.05368486,0.000119,2]
[350946000,1738230632547,-800.0,0.000119,4]
[350946001,1738230632556,-590.80190712,0.000119,2]
[350946002,1738230632566,-192.31343711,0.000119,2]
[350946003,1738230632577,-150.0,0.00011973,2]
[350946004,1738230632587,-223.83233964,0.00011999,3]
[350946005,1738230632597,-635.12922361,0.00011999,2]
[350946006,1738230632606,-8829.88831587,0.00011999,2]
[350946007,1738230632620,-279.90700102,0.00011999,2]
[350946008,1738230632702,-43692.00667382,0.00011999,2]
[350946009,1738230632715,-2201.57792837,0.00011999,2]
[350946024,1738230637921,223.06,0.00010137,2]
[350946029,1738230638207,-392.74115964,0.00011999,2]
[350946030,1738230638264,-52750.00000001,0.00011999,2]
[350946031,1738230638322,-538.19287425,0.00011999,2]
[350946032,1738230638335,-1166638.79747901,0.00011999,2]
[350946033,1738230638345,-452330.47040487,0.00012,2]
[350946034,1738230638354,-856.99,0.00012461,2]
[350946035,1738230638364,-1497.0536848,0.00012867,2]
[350946036,1738230638374,-590.80190708,0.00012867,2]
[350946037,1738230638383,-550.0,0.00013,2]
[350946038,1738230638393,-567.31,0.00013022,2]
[350946039,1738230638404,-150.0,0.00013101,2]
[350946040,1738230638417,-150.0,0.00013134,2]
[350946041,1738230638427,-670.33,0.00013329,2]
[350946042,1738230638437,-1000.04577208,0.000134,2]
[350946043,1738230638447,-1000.04577191,0.000134,2]
[350946044,1738230638457,-1000.04577191,0.000134,2]
[350946045,1738230638466,-1000.04577191,0.000134,2]
[350946046,1738230638475,-1000.04577191,0.000134,2]
[350946047,1738230638485,-1000.04577191,0.00013624,2]
[350946048,1738230638495,-1566.18,0.00013699,2]
[350946049,1738230638504,-3600.82,0.000137,2]
[350946050,1738230638514,-3600.82,0.000137,2]
[350946051,1738230638523,-1497.0536848,0.00013833,2]
[350946052,1738230638532,-590.80190708,0.00013833,2]
[350946053,1738230638544,-1000.04577191,0.00013969,2]
[350946054,1738230638555,-1000.04577191,0.00014314,2]
[350946055,1738230638564,-2797.73088,0.0001438,2]
[350946056,1738230638573,-1566.18,0.00014384,2]
[350946057,1738230638582,-1000.04577191,0.00014659,2]
[350946058,1738230638591,-1497.0536848,0.000148,2]
[350946059,1738230638601,-590.80190708,0.000148,2]
[350946060,1738230638610,-1050.06,0.00014938,2]
[350946061,1738230638620,-2207.6599,0.00015,10]
[350946062,1738230638630,-600.0,0.00015,2]
[350946063,1738230638640,-1000.04577191,0.00015003,2]
[350946064,1738230638649,-1566.18,0.00015068,2]
[350946065,1738230638659,-1000.04577191,0.00015348,2]
[350946066,1738230638669,-1000.04577191,0.00015693,2]
[350946067,1738230638679,-1566.18,0.00015753,2]
[350946069,1738230638689,-1497.0536848,0.00015767,2]
[350946071,1738230638698,-590.80190708,0.00015767,2]
[350946073,1738230638707,-1000.04577191,0.00016038,2]
[350946075,1738230638716,-160.9,0.00016044,2]
[350946077,1738230638726,-1000.0,0.00016047,2]
[350946079,1738230638736,-250.0,0.00016199,2]
[350946081,1738230638745,-1000.04577191,0.00016383,2]
[350946083,1738230638754,-1566.18,0.00016438,2]
[350946085,1738230638763,-389.73,0.0001644,2]
[350946087,1738230638772,-176.27,0.00016712,2]
[350946089,1738230638781,-1000.04577191,0.00016728,2]
[350946091,1738230638790,-1497.0536848,0.00016733,2]
[350946093,1738230638799,-590.80190708,0.00016733,2]
[350946095,1738230638811,-181.06,0.00016813,2]
[350946097,1738230638820,-223.06,0.00016813,2]
[350946099,1738230638830,-173.58,0.00016856,2]
[350946101,1738230638839,-18372.36,0.00016856,2]
[350946103,1738230638848,-241.73,0.00016856,2]
[350946105,1738230638857,-1500.0,0.00016856,2]
[350946107,1738230638867,-2797.73088,0.0001688,2]
[350946109,1738230638877,-650.0,0.00017,2]
[350946111,1738230638886,-1000.04577191,0.00017072,2]
[350946113,1738230638895,-1050.06,0.00017202,2]
[350946115,1738230638904,-3958.0,0.000174,2]
[350946117,1738230638913,-1000.04577191,0.00017417,2]
[350946119,1738230638922,-609.0,0.00017667,2]
[350946121,1738230638931,-1497.0536848,0.000177,2]
[350946123,1738230638941,-590.80190708,0.000177,2]
[350946125,1738230638951,-1000.04577191,0.00017762,2]
[350946127,1738230638960,-999.0,0.00017808,2]
[350946129,1738230638970,-262.5,0.0001781,2]
[350946131,1738230638979,-1000.0,0.00018053,2]
[350946133,1738230638988,-2000.0,0.00018082,2]
[350946135,1738230638997,-933.02401915,0.000181,2]
[350946137,1738230639007,-1021.0,0.000181,3]
[350946139,1738230639016,-1000.04577191,0.00018107,2]
[350946141,1738230639026,-567.31,0.0001823,2]
[350946143,1738230639035,-1000.04577191,0.00018452,2]
[350946145,1738230639044,-389.73,0.00018495,2]
[350946147,1738230639055,-5558.0,0.000186,5]
[350946149,1738230639065,-1497.0536848,0.00018667,2]
[350946151,1738230639075,-590.80190708,0.00018667,2]
[350946153,1738230639084,-2000.0,0.00018751,2]
[350946155,1738230639094,-1000.04577191,0.00018797,2]
[350946157,1738230639103,-1000.0,0.00018904,9]
[350946159,1738230639112,-152.06,0.00019,30]
[350946161,1738230639122,-10283.85836324,0.00019,2]
[350946163,1738230639131,-700.0,0.00019,2]
[350946165,1738230639141,-1000.0,0.00019004,2]
[350946167,1738230639151,-1000.0,0.00019004,2]
[350946169,1738230639160,-1000.04577191,0.00019141,2]
[350946171,1738230639170,-11901.99,0.00019151,2]
[350946173,1738230639180,-500.0,0.00019164,2]
[350946175,1738230639190,-500.0,0.00019164,2]
[350946177,1738230639200,-1000.0,0.00019178,9]
[350946179,1738230639209,-150.0,0.00019178,2]
[350946181,1738230639219,-164.93,0.00019233,2]
[350946183,1738230639229,-439.12,0.00019291,2]
[350946185,1738230639238,-774.18,0.00019291,2]
[350946187,1738230639247,-774.18,0.00019291,2]
[350946190,1738230639258,-439.12,0.00019291,2]
[350946192,1738230639267,-774.18,0.00019291,2]
[350946194,1738230639277,-439.12,0.00019291,2]
[350946196,1738230639287,-774.18,0.00019291,2]
[350946198,1738230639296,-439.12,0.00019291,2]
[350946199,1738230639307,-774.18,0.00019291,2]
[350946201,1738230639317,-439.12,0.00019291,2]
[350946204,1738230639327,-439.12,0.00019291,2]
[350946206,1738230639336,-439.12,0.00019291,2]
[350946207,1738230639346,-2797.73088,0.0001938,2]
[350946209,1738230639354,-2000.0,0.0001942,2]
[350946212,1738230639364,-1000.0,0.00019452,9]
[350946214,1738230639373,-1000.0,0.00019452,2]
[350946216,1738230639383,-1000.0,0.00019452,2]
[350946218,1738230639392,-1000.0,0.00019452,2]
[350946220,1738230639401,-1000.0,0.00019452,2]
[350946222,1738230639414,-1000.0,0.00019452,2]
[350946224,1738230639424,-1000.0,0.00019452,2]
[350946226,1738230639434,-1000.0,0.00019452,2]
[350946228,1738230639443,-1000.0,0.00019452,2]
[350946230,1738230639455,-1000.0,0.00019452,2]
[350946232,1738230639465,-1000.0,0.00019452,2]
[350946234,1738230639474,-1000.0,0.00019452,2]
[350946236,1738230639484,-1000.0,0.00019452,2]
[350946238,1738230639494,-1000.0,0.00019452,2]
[350946240,1738230639506,-1000.0,0.00019452,2]
[350946242,1738230639515,-1000.0,0.00019452,2]
[350946243,1738230639525,-1000.0,0.00019452,2]
[350946244,1738230639535,-1000.0,0.00019452,2]
[350946245,1738230639544,-1000.0,0.00019452,2]
[350946246,1738230639556,-1000.0,0.00019452,2]
[350946247,1738230639566,-1000.0,0.00019452,2]
[350946248,1738230639576,-1000.0,0.00019452,2]
[350946249,1738230639585,-1000.0,0.00019452,2]
[350946250,1738230639594,-1000.0,0.00019452,2]
[350946251,1738230639603,-1000.0,0.00019452,2]
[350946252,1738230639612,-1000.0,0.00019452,2]
[350946253,1738230639621,-1000.0,0.00019452,2]
[350946254,1738230639631,-1000.0,0.00019452,2]
[350946256,1738230639640,-1000.0,0.00019452,2]
[350946257,1738230639650,-1000.0,0.00019452,2]
[350946258,1738230639661,-1000.0,0.00019452,2]
[350946259,1738230639670,-1000.0,0.00019452,2]
[350946260,1738230639679,-1000.0,0.00019452,2]
[350946262,1738230639689,-1000.0,0.00019452,2]
[350946263,1738230639698,-1000.0,0.00019452,2]
[350946264,1738230639707,-1000.0,0.00019452,2]
[350946265,1738230639717,-1000.0,0.00019452,2]
[350946266,1738230639726,-1000.0,0.00019452,2]
[350946267,1738230639736,-1000.0,0.00019452,2]
[350946268,1738230639745,-1000.0,0.00019452,2]
[350946269,1738230639755,-1000.0,0.00019452,2]
[350946270,1738230639764,-1000.0,0.00019452,2]
[350946271,1738230639774,-1000.0,0.00019452,2]